[Event "DVM U10 2024"]
[Site "Duesseldorf"]
[Date "2024.12.27"]
[Round "1"]
[White "Aslanov, Kamran"]
[Black "Nikolic, Luka"]
[Result "0-1"]
[ECO "B13"]
[WhiteElo "1451"]
[BlackElo "1579"]
[Annotator "NA RC"]
[PlyCount "100"]
[EventDate "2024.12.23"]
[EventType "team-tourn"]
[EventRounds "7"]
[EventCountry "GER"]
[SourceTitle "playchess.com"]
[Source "ChessBase"]
[SourceQuality "1"]
[TimeControl "3300+5"]

1. e4 {[%emt 0:00:02]} c6 {[%emt 0:00:02]} 2. d4 {[%emt 0:00:13]} d5 {[%emt 0:00:04]} 3. exd5 {[%emt 0:00:12]} cxd5 {[%emt 0:00:10]} 4. Nf3 {[%emt 0:01:26]} Nc6 {[%emt 0:00:08]} 5. Nc3 {[%emt 0:00:15]} Nf6 {[%emt 0:00:15]} 6. h3 {[%emt 0:01:09]} Bf5 {[%emt 0:00:38]} 7. Bf4 {[%emt 0:01:23]} e6 {[%emt 0:00:12]} 8. a3 {[%emt 0:01:02]} Bd6 {[%emt 0:00:45]} 9. Bxd6 {[%emt 0:01:38]} Qxd6 {[%emt 0:00:08]} 10. Bb5 {[%emt 0:03:38]} a6 {[%emt 0:01:53]} 11. Ba4 {[%emt 0:01:01]} O-O {[%emt 0:05:55]} 12. O-O {[%emt 0:00:24]} Rac8 {[%emt 0:00:21]} 13. Qd2 {[%emt 0:03:35]} Ne4 {[%emt 0:02:36]} 14. Qd1 {[%emt 0:03:27]} Nxc3 {[%emt 0:02:11]} 15. bxc3 {[%emt 0:00:15]} b5 {[%emt 0:00:24]} 16. Bb3 {[%emt 0:00:28]} Na5 {[%emt 0:00:31]} 17. Qd2 {[%emt 0:02:36]} Qc6 {[%emt 0:00:46]} 18. c4 {[%emt 0:07:17]} Nxc4 {[%emt 0:02:39]} 19. Qe2 {[%emt 0:03:58]} Na5 {[%emt 0:01:30]} 20. Rac1 {[%emt 0:03:31]} Qd6 {[%emt 0:00:58]} 21. a4 {[%emt 0:05:18]} bxa4 {[%emt 0:01:00]} 22. Bxa4 {[%emt 0:00:24]} Qa3 {[%emt 0:03:08]} 23. Ra1 {[%emt 0:09:55]} Qc3 {[%emt 0:00:43]} 24. Rac1 {[%emt 0:00:00]} Qb4 {[%emt 0:08:04]} 25. Ra1 {[%emt 0:00:00]} Nc4 {[%emt 0:03:09]} 26. Rfb1 {[%emt 0:02:38]} Qd6 {[%emt 0:03:21]} 27. Rf1 {[%emt 0:00:00]} Be4 {[%emt 0:03:26]} 28. Bb3 {[%emt 0:00:00]} Bxf3 {[%emt 0:00:52]} 29. Qxf3 {[%emt 0:00:00]} Nd2 {[%emt 0:00:17]} 30. Qe2 {[%emt 0:00:00]} Nxf1 {[%emt 0:00:26]} 31. Rxf1 {[%emt 0:00:00]} a5 {[%emt 0:00:24]} 32. Rc1 {[%emt 0:00:00]} Qb4 {[%emt 0:00:28]} 33. Rb1 {[%emt 0:00:00]} a4 {[%emt 0:01:08]} 34. Bxd5 {[%emt 0:00:00]} Qxb1+ {[%emt 0:00:15]} 35. Kh2 {[%emt 0:00:00]} exd5 {[%emt 0:00:07]} 36. Qf3 {[%emt 0:00:00]} Rfd8 {[%emt 0:00:29]} 37. g3 {[%emt 0:00:00]} Rxc2 {[%emt 0:00:13]} 38. h4 {[%emt 0:00:00]} Qa2 {[%emt 0:00:14]} 39. Kg2 {[%emt 0:00:00]} Rxf2+ {[%emt 0:00:14]} 40. Qxf2 {[%emt 0:00:00]} Qxf2+ {[%emt 0:00:12]} 41. Kxf2 {[%emt 0:00:00]} a3 {[%emt 0:00:10]} 42. Ke2 {[%emt 0:00:00]} a2 {[%emt 0:00:04]} 43. Kf3 {[%emt 0:00:00]} a1=Q {[%emt 0:00:13]} 44. h5 {[%emt 0:00:00]} Qxd4 {[%emt 0:00:16]} 45. h6 {[%emt 0:00:00]} Qe4+ {[%emt 0:00:01]} 46. Kf2 {[%emt 0:00:00]} d4 {[%emt 0:00:21]} 47. hxg7 {[%emt 0:00:00]} d3 {[%emt 0:00:32]} 48. Kg1 {[%emt 0:00:00]} d2 {[%emt 0:00:04]} 49. g4 {[%emt 0:00:00]} Qe2 {[%emt 0:00:22]} 50. g5 {[%emt 0:00:00]} d1=Q# {[%emt 0:00:08]} 0-1

[Event "DVM U10 2024"]
[Site "Duesseldorf"]
[Date "2024.12.27"]
[Round "1"]
[White "Essers, Mathilda Marie"]
[Black "von Gehlen, Samuel"]
[Result "0-1"]
[ECO "D02"]
[WhiteElo "1435"]
[BlackElo "1459"]
[Annotator "NA RC"]
[PlyCount "56"]
[EventDate "2024.12.23"]
[EventType "team-tourn"]
[EventRounds "7"]
[EventCountry "GER"]
[SourceTitle "playchess.com"]
[Source "ChessBase"]
[SourceQuality "1"]
[TimeControl "3300+5"]

1. d4 {[%emt 0:00:01]} d5 {[%emt 0:00:22]} 2. Bf4 {[%emt 0:00:16]} e6 {[%emt 0:00:14]} 3. e3 {[%emt 0:00:12]} c5 {[%emt 0:00:08]} 4. c3 {[%emt 0:00:08]} Nc6 {[%emt 0:00:11]} 5. Nf3 {[%emt 0:00:41]} Qb6 {[%emt 0:00:18]} 6. Qb3 {[%emt 0:01:44]} Qxb3 {[%emt 0:00:14]} 7. axb3 {[%emt 0:00:29]} cxd4 {[%emt 0:00:19]} 8. cxd4 {[%emt 0:01:30]} Nf6 {[%emt 0:00:17]} 9. Be2 {[%emt 0:00:48]} Bb4+ {[%emt 0:01:14]} 10. Nbd2 {[%emt 0:00:45]} Ne4 {[%emt 0:00:21]} 11. Rd1 {[%emt 0:00:48]} Na5 {[%emt 0:00:50]} 12. O-O {[%emt 0:00:22]} Nxd2 {[%emt 0:00:39]} 13. Nxd2 {[%emt 0:00:26]} Bxd2 {[%emt 0:00:12]} 14. Rxd2 {[%emt 0:00:46]} Nxb3 {[%emt 0:00:16]} 15. Rdd1 {[%emt 0:00:59]} Na5 {[%emt 0:00:24]} 16. h3 {[%emt 0:01:36]} O-O {[%emt 0:00:51]} 17. Bd6 {[%emt 0:01:14]} Re8 {[%emt 0:00:39]} 18. Bb5 {[%emt 0:02:20]} Nc6 {[%emt 0:01:08]} 19. Rc1 {[%emt 0:01:11]} Bd7 {[%emt 0:00:49]} 20. b4 {[%emt 0:01:42]} a6 {[%emt 0:00:35]} 21. Bxc6 {[%emt 0:00:49]} Bxc6 {[%emt 0:00:12]} 22. Bh2 {[%emt 0:00:55]} a5 {[%emt 0:00:41]} 23. bxa5 {[%emt 0:00:31]} Rxa5 {[%emt 0:00:15]} 24. Rfe1 {[%emt 0:01:25]} h6 {[%emt 0:01:39]} 25. Rb1 {[%emt 0:03:28]} b5 {[%emt 0:00:29]} 26. Rec1 {[%emt 0:00:42]} Rc8 {[%emt 0:00:40]} 27. Rc5 {[%emt 0:01:22]} Ra4 {[%emt 0:00:38]} 28. Rbxb5 {[%emt 0:00:57]} Ra1+ {[%emt 0:00:09]} 0-1

[Event "DVM U10 2024"]
[Site "Duesseldorf"]
[Date "2024.12.27"]
[Round "1"]
[White "Benischke, Moritz"]
[Black "Hahn, David"]
[Result "1-0"]
[ECO "A84"]
[WhiteElo "1421"]
[BlackElo "1887"]
[Annotator "NA RC"]
[PlyCount "51"]
[EventDate "2024.12.23"]
[EventType "team-tourn"]
[EventRounds "7"]
[EventCountry "GER"]
[SourceTitle "playchess.com"]
[Source "ChessBase"]
[SourceQuality "1"]
[TimeControl "3300+5"]

1. d4 {[%emt 0:00:02]} d5 {[%emt 0:00:05]} 2. c4 {[%emt 0:00:16]} e6 {[%emt 0:00:07]} 3. Nc3 {[%emt 0:00:21]} f5 {[%emt 0:00:07]} 4. cxd5 {[%emt 0:00:46]} exd5 {[%emt 0:00:19]} 5. Nf3 {[%emt 0:00:29]} c6 {[%emt 0:00:13]} 6. Bf4 {[%emt 0:00:51]} Nf6 {[%emt 0:01:39]} 7. e3 {[%emt 0:01:02]} Bd6 {[%emt 0:00:33]} 8. Bxd6 {[%emt 0:01:09]} Qxd6 {[%emt 0:00:08]} 9. Bd3 {[%emt 0:00:34]} O-O {[%emt 0:00:18]} 10. O-O {[%emt 0:01:47]} Ne4 {[%emt 0:01:03]} 11. Ne5 {[%emt 0:01:23]} Nd7 {[%emt 0:02:42]} 12. f3 {[%emt 0:01:06]} Nxc3 {[%emt 0:00:43]} 13. bxc3 {[%emt 0:00:46]} Nxe5 {[%emt 0:00:12]} 14. dxe5 {[%emt 0:00:17]} Qxe5 {[%emt 0:00:49]} 15. Qd2 {[%emt 0:01:06]} f4 {[%emt 0:01:58]} 16. e4 {[%emt 0:02:05]} d4 {[%emt 0:06:47]} 17. Bc4+ {[%emt 0:00:23]} Kh8 {[%emt 0:01:12]} 18. cxd4 {[%emt 0:00:28]} Rd8 {[%emt 0:01:40]} 19. Rfd1 {[%emt 0:00:51]} Qh5 {[%emt 0:01:25]} 20. Qxf4 {[%emt 0:00:47]} h6 {[%emt 0:01:26]} 21. Qc7 {[%emt 0:01:52]} Rd7 {[%emt 0:01:16]} 22. Qf4 {[%emt 0:01:18]} b5 {[%emt 0:03:39]} 23. Qf8+ {[%emt 0:00:43]} Kh7 {[%emt 0:00:15]} 24. Be6 {[%emt 0:00:46]} Rc7 {[%emt 0:04:17]} 25. Bg8+ {[%emt 0:01:38]} Kh8 {[%emt 0:01:03]} 26. Bf7+ {[%emt 0:00:16]} 1-0

[Event "DVM U10 2024"]
[Site "Duesseldorf"]
[Date "2024.12.27"]
[Round "1"]
[White "Wittenberger, Henri"]
[Black "Dres, Friedrich"]
[Result "1-0"]
[ECO "B01"]
[WhiteElo "1421"]
[BlackElo "1123"]
[Annotator "NA"]
[PlyCount "21"]
[EventDate "2024.12.23"]
[EventType "team-tourn"]
[EventRounds "7"]
[EventCountry "GER"]
[SourceTitle "playchess.com"]
[Source "ChessBase"]
[SourceQuality "1"]
[TimeControl "3300+5"]

1. e4 {[%emt 0:00:05]} d5 {[%emt 0:00:05]} 2. exd5 {[%emt 0:00:08]} Qxd5 {[%emt 0:00:07]} 3. Nc3 {[%emt 0:00:09]} Qa5 {[%emt 0:00:08]} 4. d4 {[%emt 0:00:08]} c6 {[%emt 0:00:10]} 5. Nf3 {[%emt 0:00:22]} Nf6 {[%emt 0:00:09]} 6. Bd2 {[%emt 0:00:40]} Qc7 {[%emt 0:00:12]} 7. Ne5 {[%emt 0:01:43]} Nbd7 {[%emt 0:00:29]} 8. Bf4 {[%emt 0:02:53]} Qb6 {[%emt 0:01:26]} 9. Nc4 {[%emt 0:02:13]} Qd8 {[%emt 0:00:18]} 10. Qe2 {[%emt 0:01:54]} Nd5 {[%emt 0:00:14]} 11. Nd6# {[%emt 0:00:28]} 1-0

[Event "DVM U10 2024"]
[Site "Duesseldorf"]
[Date "2024.12.27"]
[Round "1"]
[White "Lüttgen, Jona"]
[Black "Shandi, Hasan"]
[Result "1-0"]
[ECO "C50"]
[WhiteElo "1412"]
[BlackElo "1153"]
[Annotator "NA RC"]
[PlyCount "55"]
[EventDate "2024.12.23"]
[EventType "team-tourn"]
[EventRounds "7"]
[EventCountry "GER"]
[SourceTitle "playchess.com"]
[Source "ChessBase"]
[SourceQuality "1"]
[TimeControl "3300+5"]

1. e4 {[%emt 0:00:01]} e5 {[%emt 0:00:02]} 2. Nf3 {[%emt 0:00:10]} Nc6 {[%emt 0:00:07]} 3. Bc4 {[%emt 0:00:07]} h6 {[%emt 0:00:08]} 4. c3 {[%emt 0:00:16]} Nf6 {[%emt 0:00:24]} 5. O-O {[%emt 0:00:23]} d6 {[%emt 0:00:22]} 6. d4 {[%emt 0:00:49]} Bg4 {[%emt 0:00:59]} 7. Qb3 {[%emt 0:01:11]} Qd7 {[%emt 0:01:00]} 8. dxe5 {[%emt 0:02:04]} Na5 {[%emt 0:02:17]} 9. Bxf7+ {[%emt 0:03:35]} Kd8 {[%emt 0:04:36]} 10. Qa3 {[%emt 0:04:02]} Qxf7 {[%emt 0:00:56]} 11. exf6 {[%emt 0:04:02]} Nc4 {[%emt 0:00:29]} 12. Qb3 {[%emt 0:02:37]} Bxf3 {[%emt 0:01:16]} 13. gxf3 {[%emt 0:02:14]} Qg6+ {[%emt 0:00:48]} 14. Kh1 {[%emt 0:00:46]} Qxf6 {[%emt 0:01:31]} 15. f4 {[%emt 0:01:38]} Nb6 {[%emt 0:00:19]} 16. a4 {[%emt 0:01:29]} a5 {[%emt 0:00:48]} 17. Be3 {[%emt 0:01:24]} Ra6 {[%emt 0:01:53]} 18. Rd1 {[%emt 0:01:03]} Kc8 {[%emt 0:01:06]} 19. c4 {[%emt 0:02:57]} Qe6 {[%emt 0:00:30]} 20. Nd2 {[%emt 0:00:56]} Be7 {[%emt 0:01:26]} 21. Rac1 {[%emt 0:02:05]} Rf8 {[%emt 0:01:02]} 22. Rc3 {[%emt 0:01:39]} Qd7 {[%emt 0:05:30]} 23. c5 {[%emt 0:02:26]} dxc5 {[%emt 0:00:53]} 24. Nc4 {[%emt 0:00:49]} Qe6 {[%emt 0:00:38]} 25. Nd6+ {[%emt 0:00:25]} Kd7 {[%emt 0:01:24]} 26. Nxb7+ {[%emt 0:01:30]} Nd5 {[%emt 0:00:40]} 27. Rxd5+ {[%emt 0:00:42]} Kc6 {[%emt 0:00:38]} 28. Qb5# {[%emt 0:00:14]} 1-0

[Event "DVM U10 2024"]
[Site "Duesseldorf"]
[Date "2024.12.27"]
[Round "1"]
[White "Fabritius, Wolf"]
[Black "Roessling, Johannes"]
[Result "0-1"]
[ECO "C45"]
[WhiteElo "1405"]
[BlackElo "1618"]
[Annotator "NA RC"]
[PlyCount "120"]
[EventDate "2024.12.23"]
[EventType "team-tourn"]
[EventRounds "7"]
[EventCountry "GER"]
[SourceTitle "playchess.com"]
[Source "ChessBase"]
[SourceQuality "1"]
[TimeControl "3300+5"]

1. e4 {[%emt 0:00:02]} e5 {[%emt 0:00:06]} 2. Nf3 {[%emt 0:00:05]} Nc6 {[%emt 0:00:08]} 3. d4 {[%emt 0:00:04]} exd4 {[%emt 0:00:06]} 4. Nxd4 {[%emt 0:00:06]} Bc5 {[%emt 0:00:09]} 5. Be3 {[%emt 0:00:05]} Qf6 {[%emt 0:00:09]} 6. c3 {[%emt 0:00:05]} Nge7 {[%emt 0:00:12]} 7. Bc4 {[%emt 0:00:22]} Ne5 {[%emt 0:01:06]} 8. Bb3 {[%emt 0:00:24]} d6 {[%emt 0:00:12]} 9. h3 {[%emt 0:00:38]} O-O {[%emt 0:00:11]} 10. O-O {[%emt 0:00:16]} Qg6 {[%emt 0:00:12]} 11. h4 {[%emt 0:01:57]} Bh3 {[%emt 0:00:42]} 12. Bg5 {[%emt 0:00:21]} h6 {[%emt 0:00:56]} 13. gxh3 {[%emt 0:00:24]} hxg5 {[%emt 0:00:08]} 14. hxg5 {[%emt 0:01:55]} Qxg5+ {[%emt 0:00:18]} 15. Kh1 {[%emt 0:00:13]} Qh4 {[%emt 0:01:36]} 16. Kh2 {[%emt 0:00:29]} Qf4+ {[%emt 0:02:46]} 17. Kg2 {[%emt 0:01:16]} Qxe4+ {[%emt 0:00:18]} 18. f3 {[%emt 0:00:50]} Qg6+ {[%emt 0:01:16]} 19. Kf2 {[%emt 0:00:14]} Qd3 {[%emt 0:09:56]} 20. Qxd3 {[%emt 0:01:40]} Nxd3+ {[%emt 0:01:25]} 21. Ke3 {[%emt 0:00:10]} Ne5 {[%emt 0:00:21]} 22. Kd2 {[%emt 0:00:41]} Bxd4 {[%emt 0:01:13]} 23. cxd4 {[%emt 0:00:07]} N5c6 {[%emt 0:00:17]} 24. d5 {[%emt 0:00:24]} Ne5 {[%emt 0:01:47]} 25. Nc3 {[%emt 0:00:25]} Nf5 {[%emt 0:01:54]} 26. f4 {[%emt 0:01:01]} Ng6 {[%emt 0:00:19]} 27. Nb5 {[%emt 0:01:25]} a6 {[%emt 0:06:05]} 28. Na3 {[%emt 0:01:46]} Rfe8 {[%emt 0:01:24]} 29. Rf3 {[%emt 0:00:32]} Nd4 {[%emt 0:00:34]} 30. Rf2 {[%emt 0:00:16]} Ne7 {[%emt 0:00:53]} 31. Rg1 {[%emt 0:02:02]} Nxb3+ {[%emt 0:00:16]} 32. axb3 {[%emt 0:00:06]} Nxd5 {[%emt 0:00:13]} 33. Rfg2 {[%emt 0:00:10]} g6 {[%emt 0:02:48]} 34. f5 {[%emt 0:00:15]} Kh7 {[%emt 0:01:24]} 35. fxg6+ {[%emt 0:00:22]} fxg6 {[%emt 0:00:08]} 36. Rxg6 {[%emt 0:01:37]} Rg8 {[%emt 0:00:07]} 37. Rxg8 {[%emt 0:00:12]} Rxg8 {[%emt 0:00:06]} 38. Rxg8 {[%emt 0:00:05]} Kxg8 {[%emt 0:00:10]} 39. Nc4 {[%emt 0:00:30]} Kf7 {[%emt 0:00:20]} 40. Na5 {[%emt 0:00:18]} b6 {[%emt 0:00:13]} 41. Nc6 {[%emt 0:00:14]} Ke6 {[%emt 0:00:44]} 42. h4 {[%emt 0:00:32]} Ne7 {[%emt 0:00:35]} 43. Nd4+ {[%emt 0:01:10]} Ke5 {[%emt 0:00:30]} 44. Nf3+ {[%emt 0:00:18]} Kf4 {[%emt 0:00:11]} 45. Ke2 {[%emt 0:00:26]} Kg4 {[%emt 0:00:51]} 46. Nd4 {[%emt 0:00:46]} Kxh4 {[%emt 0:00:22]} 47. Ne6 {[%emt 0:00:17]} c5 {[%emt 0:00:21]} 48. Nc7 {[%emt 0:00:16]} a5 {[%emt 0:00:09]} 49. Kd3 {[%emt 0:00:13]} Kg4 {[%emt 0:00:36]} 50. Kc4 {[%emt 0:00:09]} Kf5 {[%emt 0:00:20]} 51. Nb5 {[%emt 0:01:30]} Ke5 {[%emt 0:00:19]} 52. Nc3 {[%emt 0:00:42]} d5+ {[%emt 0:01:06]} 53. Kd3 {[%emt 0:00:23]} d4 {[%emt 0:00:12]} 54. Ne2 {[%emt 0:00:38]} Nd5 {[%emt 0:00:25]} 55. Nc1 {[%emt 0:00:34]} Nb4+ {[%emt 0:00:30]} 56. Kd2 {[%emt 0:00:21]} Ke4 {[%emt 0:00:14]} 57. Ne2 {[%emt 0:00:14]} Nd3 {[%emt 0:00:32]} 58. Kc2 {[%emt 0:00:36]} Ke3 {[%emt 0:00:10]} 59. Ng3 {[%emt 0:00:09]} Nb4+ {[%emt 0:00:32]} 60. Kd1 {[%emt 0:00:13]} Nd3 {[%emt 0:00:57]} 0-1

[Event "DVM U10 2024"]
[Site "Duesseldorf"]
[Date "2024.12.27"]
[Round "1"]
[White "Glaser-Gallion, Ludwig"]
[Black "Liu, Jonas"]
[Result "0-1"]
[ECO "B30"]
[WhiteElo "1358"]
[BlackElo "1690"]
[Annotator "NA RC"]
[PlyCount "66"]
[EventDate "2024.12.23"]
[EventType "team-tourn"]
[EventRounds "7"]
[EventCountry "GER"]
[SourceTitle "playchess.com"]
[Source "ChessBase"]
[SourceQuality "1"]
[TimeControl "3300+5"]

1. e4 {[%emt 0:00:03]} c5 {[%emt 0:00:12]} 2. Nf3 {[%emt 0:00:05]} Nc6 {[%emt 0:00:13]} 3. Nc3 {[%emt 0:00:06]} g6 {[%emt 0:00:26]} 4. Bb5 {[%emt 0:00:25]} Nd4 {[%emt 0:00:29]} 5. Nxd4 {[%emt 0:01:02]} cxd4 {[%emt 0:00:11]} 6. Ne2 {[%emt 0:00:09]} Bg7 {[%emt 0:00:30]} 7. d3 {[%emt 0:00:38]} Qa5+ {[%emt 0:00:17]} 8. Qd2 {[%emt 0:02:05]} Qxb5 {[%emt 0:00:33]} 9. b3 {[%emt 0:01:13]} e5 {[%emt 0:00:57]} 10. Bb2 {[%emt 0:01:10]} Nf6 {[%emt 0:00:56]} 11. h3 {[%emt 0:01:37]} d5 {[%emt 0:01:46]} 12. f3 {[%emt 0:04:37]} a5 {[%emt 0:03:35]} 13. a4 {[%emt 0:00:41]} Qb4 {[%emt 0:00:54]} 14. Qxb4 {[%emt 0:02:22]} axb4 {[%emt 0:00:12]} 15. g4 {[%emt 0:08:31]} dxe4 {[%emt 0:00:53]} 16. fxe4 {[%emt 0:01:43]} Bxg4 {[%emt 0:02:01]} 17. hxg4 {[%emt 0:00:51]} Nxg4 {[%emt 0:00:06]} 18. Bc1 {[%emt 0:00:12]} Rc8 {[%emt 0:00:31]} 19. Ra2 {[%emt 0:01:33]} h5 {[%emt 0:00:43]} 20. Ng1 {[%emt 0:02:53]} Rc6 {[%emt 0:02:30]} 21. Nf3 {[%emt 0:02:05]} Ke7 {[%emt 0:01:53]} 22. Nh2 {[%emt 0:03:23]} f5 {[%emt 0:02:46]} 23. exf5 {[%emt 0:04:36]} gxf5 {[%emt 0:00:25]} 24. Nxg4 {[%emt 0:02:47]} hxg4 {[%emt 0:00:26]} 25. Bg5+ {[%emt 0:00:17]} Ke6 {[%emt 0:00:20]} 26. Rg1 {[%emt 0:02:17]} Bf6 {[%emt 0:00:56]} 27. Bxf6 {[%emt 0:00:38]} Kxf6 {[%emt 0:00:08]} 28. Kf2 {[%emt 0:00:35]} Rh2+ {[%emt 0:00:09]} 29. Rg2 {[%emt 0:00:18]} Rxg2+ {[%emt 0:00:06]} 30. Kxg2 {[%emt 0:00:05]} f4 {[%emt 0:00:08]} 31. Kf2 {[%emt 0:00:58]} g3+ {[%emt 0:00:47]} 32. Kf3 {[%emt 0:00:21]} Kf5 {[%emt 0:00:10]} 33. Rb2 {[%emt 0:00:47]} Rc3 {[%emt 0:00:32]} 0-1

[Event "DVM U10 2024"]
[Site "Duesseldorf"]
[Date "2024.12.27"]
[Round "1"]
[White "Michelson, Nathan"]
[Black "von Flottwell, Lionel"]
[Result "0-1"]
[ECO "C44"]
[WhiteElo "1198"]
[BlackElo "1597"]
[Annotator "NA RC"]
[PlyCount "44"]
[EventDate "2024.12.23"]
[EventType "team-tourn"]
[EventRounds "7"]
[EventCountry "GER"]
[SourceTitle "playchess.com"]
[Source "ChessBase"]
[SourceQuality "1"]
[TimeControl "3300+5"]

1. e4 {[%emt 0:00:02]} e5 {[%emt 0:00:16]} 2. Nf3 {[%emt 0:00:03]} Nc6 {[%emt 0:00:14]} 3. c3 {[%emt 0:00:04]} d5 {[%emt 0:00:15]} 4. exd5 {[%emt 0:00:13]} Qxd5 {[%emt 0:00:23]} 5. d4 {[%emt 0:00:07]} Bg4 {[%emt 0:02:27]} 6. c4 {[%emt 0:00:30]} Qd7 {[%emt 0:03:49]} 7. h3 {[%emt 0:01:03]} Bxf3 {[%emt 0:01:40]} 8. Qxf3 {[%emt 0:00:15]} Nxd4 {[%emt 0:00:46]} 9. Qe4 {[%emt 0:00:23]} O-O-O {[%emt 0:00:29]} 10. Bd3 {[%emt 0:00:15]} Nf6 {[%emt 0:00:41]} 11. Qe3 {[%emt 0:01:06]} e4 {[%emt 0:00:13]} 12. O-O {[%emt 0:00:50]} exd3 {[%emt 0:00:20]} 13. Qxd3 {[%emt 0:00:07]} Re8 {[%emt 0:00:23]} 14. Be3 {[%emt 0:00:39]} Nf3+ {[%emt 0:00:12]} 15. gxf3 {[%emt 0:00:27]} Qxd3 {[%emt 0:00:08]} 16. Nc3 {[%emt 0:00:46]} Rxe3 {[%emt 0:00:43]} 17. fxe3 {[%emt 0:00:43]} Qxe3+ {[%emt 0:00:14]} 18. Kh1 {[%emt 0:00:08]} Nh5 {[%emt 0:00:13]} 19. Rfe1 {[%emt 0:00:23]} Qxf3+ {[%emt 0:00:13]} 20. Kh2 {[%emt 0:00:09]} Bd6+ {[%emt 0:00:14]} 21. Kg1 {[%emt 0:00:12]} Nf4 {[%emt 0:00:26]} 22. Re2 {[%emt 0:00:24]} Nxh3# {[%emt 0:00:12]} 0-1

[Event "DVM U10 2024"]
[Site "Duesseldorf"]
[Date "2024.12.27"]
[Round "1"]
[White "Klaus, Simon"]
[Black "Wilting, Oskar"]
[Result "0-1"]
[ECO "B21"]
[WhiteElo "1197"]
[BlackElo "1454"]
[Annotator "NA RC"]
[PlyCount "112"]
[EventDate "2024.12.23"]
[EventType "team-tourn"]
[EventRounds "7"]
[EventCountry "GER"]
[SourceTitle "playchess.com"]
[Source "ChessBase"]
[SourceQuality "1"]
[TimeControl "3300+5"]

1. e4 {[%emt 0:00:02]} c5 {[%emt 0:00:08]} 2. d4 {[%emt 0:00:12]} cxd4 {[%emt 0:00:14]} 3. c3 {[%emt 0:00:17]} dxc3 {[%emt 0:01:34]} 4. Nxc3 {[%emt 0:00:09]} e6 {[%emt 0:00:10]} 5. Bf4 {[%emt 0:00:11]} a6 {[%emt 0:00:41]} 6. Nf3 {[%emt 0:00:16]} Nc6 {[%emt 0:00:34]} 7. Bc4 {[%emt 0:00:30]} Be7 {[%emt 0:03:23]} 8. O-O {[%emt 0:00:19]} b5 {[%emt 0:01:13]} 9. Bb3 {[%emt 0:01:05]} Bb7 {[%emt 0:01:29]} 10. Re1 {[%emt 0:01:06]} Qb6 {[%emt 0:01:49]} 11. a3 {[%emt 0:01:24]} Na5 {[%emt 0:03:38]} 12. Rc1 {[%emt 0:01:11]} Bc5 {[%emt 0:02:13]} 13. Be3 {[%emt 0:01:34]} Bxe3 {[%emt 0:01:51]} 14. Rxe3 {[%emt 0:00:53]} Nf6 {[%emt 0:01:09]} 15. e5 {[%emt 0:01:03]} Ng4 {[%emt 0:01:58]} 16. Re2 {[%emt 0:00:38]} Bc6 {[%emt 0:03:26]} 17. h3 {[%emt 0:00:39]} Bxf3 {[%emt 0:01:28]} 18. gxf3 {[%emt 0:00:18]} Nh6 {[%emt 0:01:05]} 19. Rd2 {[%emt 0:00:20]} Nf5 {[%emt 0:02:02]} 20. Rxd7 {[%emt 0:01:11]} Nxb3 {[%emt 0:00:22]} 21. Rc2 {[%emt 0:02:06]} Nfd4 {[%emt 0:01:53]} 22. Rxd4 {[%emt 0:01:12]} Nxd4 {[%emt 0:00:38]} 23. Rd2 {[%emt 0:02:09]} Rd8 {[%emt 0:00:25]} 24. Ne4 {[%emt 0:00:50]} Nf5 {[%emt 0:01:42]} 25. Kg2 {[%emt 0:02:51]} Rxd2 {[%emt 0:00:57]} 26. Qxd2 {[%emt 0:00:12]} Qd4 {[%emt 0:03:15]} 27. Qc2 {[%emt 0:01:17]} O-O {[%emt 0:00:53]} 28. b4 {[%emt 0:00:58]} Qe3 {[%emt 0:01:01]} 29. Qb2 {[%emt 0:00:57]} Nh4+ {[%emt 0:00:47]} 30. Kf1 {[%emt 0:01:50]} Qd3+ {[%emt 0:01:16]} 31. Qe2 {[%emt 0:02:16]} Qxe2+ {[%emt 0:00:10]} 32. Kxe2 {[%emt 0:00:07]} Nf5 {[%emt 0:00:08]} 33. Nc5 {[%emt 0:00:16]} Nd4+ {[%emt 0:00:38]} 34. Kd3 {[%emt 0:00:30]} Nxf3 {[%emt 0:00:40]} 35. Ke4 {[%emt 0:00:39]} Ng5+ {[%emt 0:00:20]} 36. Ke3 {[%emt 0:00:17]} Nxh3 {[%emt 0:00:12]} 37. Nxa6 {[%emt 0:02:43]} Ra8 {[%emt 0:00:26]} 38. Nc7 {[%emt 0:00:22]} Rxa3+ {[%emt 0:00:09]} 39. Ke2 {[%emt 0:00:13]} Rb3 {[%emt 0:00:17]} 40. Na6 {[%emt 0:00:13]} h5 {[%emt 0:00:34]} 41. f3 {[%emt 0:00:41]} Nf4+ {[%emt 0:00:13]} 42. Kf2 {[%emt 0:00:23]} h4 {[%emt 0:00:11]} 43. Kg1 {[%emt 0:00:52]} Rb2 {[%emt 0:00:12]} 44. Nc5 {[%emt 0:00:31]} h3 {[%emt 0:00:20]} 45. Ne4 {[%emt 0:00:16]} h2+ {[%emt 0:00:22]} 46. Kh1 {[%emt 0:00:07]} Nh5 {[%emt 0:00:29]} 47. f4 {[%emt 0:00:17]} Re2 {[%emt 0:00:24]} 48. f5 {[%emt 0:00:10]} Rxe4 {[%emt 0:00:30]} 49. Kxh2 {[%emt 0:00:16]} Rxb4 {[%emt 0:00:12]} 50. fxe6 {[%emt 0:01:23]} fxe6 {[%emt 0:00:07]} 51. Kh3 {[%emt 0:00:12]} Rc4 {[%emt 0:00:06]} 52. Kg2 {[%emt 0:00:10]} b4 {[%emt 0:00:05]} 53. Kf2 {[%emt 0:00:29]} b3 {[%emt 0:00:05]} 54. Ke2 {[%emt 0:00:22]} b2 {[%emt 0:00:07]} 55. Kd2 {[%emt 0:00:07]} b1=Q {[%emt 0:00:11]} 56. Ke3 {[%emt 0:00:10]} Qb3+ {[%emt 0:00:07]} 0-1